bitfinex/quotes_ETHUSD_20240729
["timestamp","ask_amount","ask_price","bid_price","bid_amount"]
[1722270031454,3.02352,3307.4,3306.6,2.72118]
[1722270031698,3.02352,3307.4,3306.7,0.55]
[1722270032000,7.06034,3307.6,3306.8,0.0604795]
[1722270032001,3.0,3307.6,3306.8,0.0604795]
[1722270032164,0.06169705,3307.3,3306.9,0.55]
[1722270032364,7.37,3307.7,3307.0,0.36344795]
[1722270032569,0.06165762,3307.2,3307.1,0.55]
[1722270032793,3.02325,3307.7,3307.1,0.55]
[1722270032961,0.06165762,3307.2,3307.1,2.8871]
[1722270033164,3.02288,3308.1,3307.2,3.0237]
[1722270033406,7.37,3308.4,3307.3,0.55]
[1722270033562,2.4674,3308.6,3307.1,2.8871]
[1722270033563,3.02322,3307.8,3307.1,2.8871]
[1722270033765,3.0234,3307.6,3307.1,3.2121548]
[1722270034012,3.02343,3307.5,3307.1,3.2121548]
[1722270034308,3.08539965,3307.5,3307.1,3.2121548]
[1722270034527,0.06196965,3307.5,3307.1,3.2121548]
[1722270034671,3.0235,3307.5,3307.1,3.2121548]
[1722270034880,0.0619769,3307.4,3307.1,3.2121548]
[1722270035104,3.02366,3307.3,3307.1,0.55]
[1722270035388,3.0237,3307.2,3307.1,0.55]
[1722270035784,3.08559805,3307.2,3307.1,0.55]
[1722270036186,0.06189805,3307.2,3307.1,0.55]
[1722270036629,3.0,3308.1,3307.0,2.3371]
[1722270036850,0.06187378,3307.2,3307.1,0.8441786]
[1722270037127,3.02298,3308.0,3307.1,0.8441786]
[1722270037285,0.06187378,3307.2,3307.1,0.8441786]
[1722270037482,3.02307,3307.9,3307.1,3.8679586]
[1722270037801,3.02291,3308.1,3307.2,0.62050586]
[1722270037983,3.02298,3308.0,3307.3,0.55]
[1722270038184,3.02307,3307.9,3307.3,0.55]
[1722270039704,3.02308,3307.9,3307.3,0.55]
[1722270039904,3.0233,3307.7,3307.3,0.55]
[1722270040190,3.0233,3307.7,3307.2,0.55]
[1722270040532,3.02334,3307.6,3307.2,0.55]
[1722270040746,3.02348,3307.5,3307.0,2.3371]
[1722270040893,3.02354,3307.4,3307.0,2.3371]
[1722270041293,3.02341,3307.6,3307.0,2.3371]
[1722270041537,3.02344,3307.5,3307.0,2.3371]
[1722270041756,3.02368,3307.3,3306.6,2.4892]
[1722270041952,3.02368,3307.3,3306.7,0.24892]
[1722270042247,3.02347,3307.5,3306.8,0.55]
[1722270042474,3.02328,3307.7,3306.8,0.61047553]
[1722270042656,3.0231,3307.9,3306.8,0.61047553]
[1722270042657,3.02322,3307.8,3306.8,3.63454553]
[1722270042843,3.02322,3307.8,3306.9,3.02397]
[1722270043167,3.02322,3307.8,3307.0,4.23968155]
[1722270043332,3.02292,3308.1,3307.1,2.4892]
[1722270043532,3.0,3308.2,3307.2,0.55]
[1722270043533,3.02332,3307.7,3307.2,0.55]
[1722270043923,3.02335,3307.6,3307.2,0.55]
[1722270044123,3.02332,3307.7,3307.2,0.55]
[1722270044124,3.02343,3307.5,3307.2,0.55]
[1722270044356,3.02352,3307.4,3307.2,0.55]
[1722270045695,3.02361,3307.3,3307.2,0.55]
[1722270045862,3.02361,3307.3,3305.8,15.39495]
[1722270045863,3.02405,3306.9,3305.7,2.4892]
[1722270046028,3.02467,3306.2,3305.7,2.4892]
[1722270046536,3.02473,3306.1,3305.7,2.4892]
[1722270047332,3.0248,3306.0,3305.7,2.4892]
[1722270047546,6.04954,3306.1,3305.7,2.4892]
[1722270047765,3.02487,3306.0,3305.7,2.4892]
[1722270048126,3.02489,3305.9,3305.7,2.4892]
[1722270048926,0.06005001,3305.8,3305.7,2.4892]
[1722270049129,6.02418,3306.7,3305.7,2.73812]
[1722270049130,3.02447,3306.4,3305.7,2.73812]
[1722270049368,3.02468,3306.2,3305.7,2.73812]
[1722270049538,3.02478,3306.1,3305.8,0.55]
[1722270049874,3.08530613,3306.0,3305.8,0.55]
[1722270050178,0.06050613,3306.0,3305.8,0.55]
[1722270050547,3.08530613,3306.0,3305.8,0.55]
[1722270050862,0.06050613,3306.0,3305.8,0.55]
[1722270051236,3.02472,3306.1,3305.8,0.55]
[1722270051437,0.06046668,3305.9,3305.8,0.55]
[1722270051634,3.02472,3306.1,3305.8,0.55]
[1722270051884,3.02472,3306.1,3305.1,3.05]
[1722270051885,5.3374,3306.0,3305.1,3.05]
[1722270052091,3.02542,3305.4,3304.4,3.02618]
[1722270052410,3.02542,3305.4,3304.3,2.257]
[1722270052411,0.06016454,3305.3,3304.5,3.08668565]
[1722270052558,0.04746454,3305.3,3304.7,3.02593]
[1722270052896,3.0,3306.0,3304.9,2.3082]
[1722270052897,3.02517,3305.6,3304.9,2.3082]
[1722270053065,0.05964942,3305.2,3304.9,2.3082]
[1722270053271,3.02517,3305.6,3305.0,0.23687105]
[1722270053618,3.02531,3305.5,3305.0,0.23687105]
[1722270053753,3.02531,3305.5,3304.9,2.3082]
[1722270053754,3.02542,3305.4,3304.9,2.3082]
[1722270053960,0.05962902,3305.3,3305.0,0.55]
[1722270054261,0.05962902,3305.3,3305.0,0.83582]
[1722270054573,3.02521,3305.6,3305.0,0.83582]
[1722270054781,3.0,3306.0,3305.0,0.55]
[1722270054782,0.05918611,3305.2,3305.0,0.55]
[1722270055093,3.02571,3305.0,3304.2,2.3398]
[1722270055390,3.02554,3305.2,3304.3,3.62341398]
[1722270055391,0.05947113,3304.9,3304.3,3.62341398]
[1722270055693,3.02539,3305.4,3304.3,3.62341398]
[1722270055694,3.02545,3305.3,3304.4,3.02621]
[1722270055857,0.05918984,3305.2,3304.6,5.42201]
[1722270056057,0.05918984,3305.2,3304.8,3.02587]
[1722270056368,0.05919258,3305.1,3304.9,3.63627661]
[1722270056570,0.05919258,3305.1,3305.0,0.55]
[1722270056792,3.02493,3305.9,3304.9,3.02579]
[1722270056793,6.0499,3305.9,3304.9,3.02579]
[1722270056958,7.37,3306.1,3304.7,2.5982526]
[1722270056959,3.02522,3305.6,3305.0,1.16121748]
[1722270057156,0.05967245,3305.5,3305.1,0.55]
[1722270057421,0.05967245,3305.5,3304.7,5.6241826]
[1722270057801,3.02541,3305.4,3304.7,1.0982526]
[1722270058155,3.08509585,3305.3,3304.7,1.0982526]
[1722270058602,0.05964585,3305.3,3304.7,1.0982526]
[1722270058773,0.05964585,3305.3,3304.8,0.34942526]
[1722270058973,3.0253,3305.5,3304.9,0.55]
[1722270059166,0.05960639,3305.2,3304.9,0.55]
[1722270059365,3.0253,3305.5,3304.9,0.55]
[1722270059577,0.05967409,3305.4,3304.9,0.55]
[1722270059773,3.08503409,3305.4,3304.9,0.55]
[1722270059976,0.05967409,3305.4,3304.9,0.55]
[1722270060189,3.0256,3305.2,3304.8,0.34942526]
[1722270060462,0.05915223,3305.1,3304.8,0.34942526]
[1722270060684,0.05915223,3305.1,3304.6,5.4825325]
[1722270060885,3.02502,3305.8,3304.6,2.4565125]
[1722270061098,3.02525,3305.6,3304.7,3.02593]
[1722270061394,3.02525,3305.6,3304.6,2.396]
[1722270061395,0.05930454,3305.5,3304.6,2.396]
[1722270061605,3.02546,3305.3,3304.7,0.7896]
[1722270061805,3.08460454,3305.5,3304.7,0.7896]
[1722270061809,3.0253,3305.5,3304.7,0.7896]
[1722270061958,0.05958955,3305.2,3304.7,0.7896]
[1722270062163,3.02511,3305.7,3304.7,0.7896]
[1722270062376,0.05974741,3305.6,3304.8,0.06050984]
[1722270062573,0.05974741,3305.6,3304.9,0.93760398]
[1722270063062,0.05974741,3305.6,3304.9,0.55]
[1722270064293,0.05974741,3305.6,3304.9,3.57579]
[1722270064620,2.411,3305.0,3303.2,7.34]
[1722270064922,2.411,3305.0,3303.1,2.492]
[1722270064929,3.02636,3304.3,3303.1,2.492]
[1722270065083,3.02696,3303.7,3303.1,2.492]
[1722270065281,0.06050853,3303.8,3303.1,2.64296155]
[1722270065491,3.02714,3303.5,3303.1,2.64296155]
[1722270065670,3.02714,3303.5,3302.6,2.492]
[1722270065875,0.05878791,3303.4,3302.6,2.492]
[1722270066078,3.027,3303.6,3302.7,0.701998]
[1722270066279,0.05867036,3303.5,3302.6,0.06054219]
[1722270066479,0.05867036,3303.5,3302.4,0.1477156]
[1722270066480,0.06050853,3303.8,3302.7,0.06055281]
[1722270066695,3.02743,3303.2,3302.4,0.1477156]
[1722270066878,0.05851231,3303.1,3302.4,0.1477156]
[1722270067104,3.02743,3303.2,3302.4,0.31248716]
[1722270067314,0.05851231,3303.1,3302.4,0.31248716]
[1722270067619,3.02781,3302.8,3302.4,0.31248716]
[1722270068009,0.05809894,3302.7,3302.4,0.31248716]
[1722270068422,6.02661,3304.1,3302.4,0.1477156]
[1722270068739,3.02721,3303.4,3302.5,0.06056016]
[1722270069041,3.02746,3303.1,3302.5,0.06056016]
[1722270069233,3.02766,3302.9,3302.5,0.06056016]
[1722270069582,0.05812567,3302.8,3302.4,0.29753712]
[1722270069785,1e-08,3302.8,3302.4,0.29753712]
[1722270070022,0.05624732,3302.8,3302.5,0.61055292]
[1722270070229,3.02747,3303.1,3302.5,0.61055292]
[1722270070831,3.02731,3303.3,3302.5,0.61055292]
[1722270070832,0.05635953,3303.0,3302.5,0.61055292]
[1722270071037,0.05635953,3303.0,3302.5,1.00417492]
[1722270071266,7.37,3304.8,3302.9,3.592]
[1722270071462,3.02584,3304.9,3303.8,3.0268]
[1722270071463,3.02607,3304.7,3303.8,3.0268]
[1722270071635,3.02607,3304.7,3303.7,3.02685]
[1722270071636,0.05293672,3304.7,3303.9,0.66589217]
[1722270071964,3.02653,3304.2,3304.0,0.55]
[1722270072267,3.02664,3304.0,3303.2,6.02732]
[1722270072540,3.592,3304.8,3303.2,6.02732]
[1722270072541,0.05257793,3303.9,3303.3,0.55]
[1722270072749,0.05257793,3303.9,3303.7,3.02688]
[1722270072895,0.06050853,3304.6,3303.8,0.55]
[1722270072896,3.08658853,3304.6,3303.8,0.55]
[1722270073096,0.05285042,3304.5,3303.8,0.55]
[1722270073799,3.07902042,3304.5,3303.8,0.55]
[1722270073998,0.05285042,3304.5,3303.8,0.61053174]
[1722270074303,0.05285042,3304.5,3303.9,3.02666]
[1722270074648,3.08663853,3304.6,3304.0,0.55]
[1722270074857,3.08663853,3304.6,3303.0,5.28094]
[1722270074858,3.02673,3303.9,3303.0,5.28094]
[1722270075138,3.38779284,3304.5,3303.2,0.55]
[1722270075453,3.08679853,3304.4,3303.4,3.0271]
[1722270075601,3.13972074,3304.4,3303.5,0.55]
[1722270076343,3.02645,3304.2,3303.5,0.90771]
[1722270076552,0.06050853,3304.1,3303.5,0.55]
[1722270076857,0.06050853,3304.1,3303.3,3.02721]
[1722270076858,3.0793084,3304.1,3303.4,0.55]
[1722270077034,3.0793084,3304.1,3303.2,0.55]
[1722270077035,3.02663,3304.0,3303.2,0.55]
[1722270077243,3.02696,3303.7,3303.0,2.2534]
[1722270077421,0.06050853,3303.7,3303.0,2.781513]
[1722270077618,0.05196834,3303.6,3303.0,2.781513]
[1722270077808,0.06050853,3303.7,3303.0,2.781513]
[1722270078011,3.02692,3303.7,3303.0,2.781513]
[1722270078317,3.02715,3303.5,3303.0,2.2534]
[1722270078517,0.05183376,3303.4,3302.6,6.02785]
[1722270078753,0.06050853,3303.4,3302.5,0.54316051]
[1722270078920,3.02752,3303.1,3302.5,0.393622]
[1722270079118,0.06050853,3303.2,3302.6,0.30295376]
[1722270079420,0.05167674,3303.1,3302.6,0.30295376]
[1722270080618,0.05167674,3303.1,3302.7,0.55]
[1722270080849,0.05167674,3303.1,3302.8,0.06055141]
[1722270081157,3.08743853,3303.7,3302.9,0.55]
[1722270081361,0.05167925,3303.6,3303.0,0.06054406]
[1722270081572,0.05167925,3303.6,3303.1,0.55]
[1722270081713,7.37,3303.8,3303.1,0.55]
[1722270081714,7.37,3303.8,3303.2,0.06053929]
[1722270081919,0.05171875,3303.7,3303.3,0.55]
[1722270082116,3.02673,3303.9,3303.3,0.6105393]
[1722270082381,0.05182339,3303.8,3303.3,0.6105393]
[1722270082534,3.02643,3304.3,3303.3,3.6377493]
[1722270082867,12.17,3305.0,3303.6,3.02699]
[1722270082868,0.05195553,3304.2,3303.6,3.02699]
[1722270083071,0.05195553,3304.2,3303.7,0.61053083]
[1722270083371,3.0262,3304.5,3303.7,3.63742083]
[1722270083531,3.13881304,3304.4,3303.7,0.61053083]
[1722270083731,3.13881304,3304.4,3303.7,0.55]
[1722270083934,0.06050853,3304.3,3303.5,0.55]
[1722270084178,0.05195553,3304.2,3303.7,3.02685]
[1722270084379,0.05195553,3304.2,3303.8,0.55]
[1722270084526,0.06050853,3304.4,3303.8,0.55]
[1722270084723,0.05210539,3304.3,3303.7,0.61053089]
[1722270084988,3.02591,3304.8,3303.7,0.61053089]
[1722270084989,3.02591,3304.8,3303.8,3.02675]
[1722270085154,3.02591,3304.8,3302.4,0.1477156]
[1722270085155,3.02719,3303.4,3302.4,0.1477156]
[1722270085359,2.33,3304.0,3302.4,0.1477156]
[1722270085360,3.02771,3302.9,3302.4,0.1477156]
[1722270085552,3.592,3303.0,3302.4,0.1477156]
[1722270085555,3.0279,3302.7,3302.4,0.1477156]
[1722270085752,6.056,3302.5,3302.4,0.1477156]
[1722270085963,0.05138156,3302.5,3302.4,0.1477156]
[1722270086136,9.084,3302.5,3302.4,0.1477156]
[1722270086334,9.75989009,3302.5,3302.4,0.1477156]
[1722270086976,12.78789009,3302.5,3302.4,0.1477156]
[1722270087179,7.6796791,3302.5,3302.4,0.1477156]
[1722270087728,6.16789009,3302.5,3302.4,0.1477156]
[1722270088477,9.19589009,3302.5,3302.4,0.1477156]
[1722270089002,12.19589009,3302.5,3302.4,0.1477156]
[1722270089805,9.16789009,3302.5,3302.4,0.1477156]
[1722270090174,6.16789009,3302.5,3302.4,0.1477156]
[1722270091347,7.0874621,3302.5,3302.4,0.1477156]
[1722270094649,10.1154621,3302.5,3302.4,0.1477156]
[1722270094935,13.1154621,3302.5,3302.4,0.1477156]
[1722270098241,10.0874621,3302.5,3302.4,0.1477156]
[1722270098592,13.1154621,3302.5,3302.4,0.1477156]
[1722270098793,10.0874621,3302.5,3302.4,0.1477156]
[1722270099846,13.1154621,3302.5,3302.4,0.1477156]
[1722270100902,10.0874621,3302.5,3302.4,0.1477156]
[1722270101703,3.07938156,3302.5,3302.4,0.1477156]
[1722270101901,3.13989009,3302.5,3302.4,0.1477156]
[1722270102107,6.16789009,3302.5,3302.4,0.1477156]
[1722270102605,9.19589009,3302.5,3302.4,0.1477156]
[1722270103408,12.22389009,3302.5,3302.4,0.1477156]
[1722270103651,13.4182791,3302.5,3302.4,0.1477156]
[1722270105816,16.4462791,3302.5,3302.4,0.1477156]
[1722270106633,13.4182791,3302.5,3302.4,0.1477156]
[1722270106837,10.3902791,3302.5,3302.4,0.1477156]
[1722270107073,9.10738156,3302.5,3302.4,0.1477156]
[1722270109561,0.05138156,3302.5,3302.4,0.1477156]
[1722270109766,3.028,3302.5,3302.4,0.1477156]
[1722270110019,3.13715724,3302.5,3302.4,0.1477156]
[1722270110160,6.16515724,3302.5,3302.4,0.1477156]
[1722270112295,3.13715724,3302.5,3302.4,0.1477156]
[1722270112783,3.07664871,3302.5,3302.4,0.1477156]
[1722270113287,0.04864871,3302.5,3302.4,0.1477156]
[1722270114062,0.04864871,3302.5,3302.4,0.6977156]
[1722270114063,3.08850853,3302.5,3302.4,0.6977156]
[1722270114269,3.13742637,3302.5,3302.4,0.6977156]
[1722270114455,0.10942637,3302.5,3302.4,0.6977156]
[1722270114883,3.13742637,3302.5,3302.4,0.6977156]
[1722270116104,0.04891784,3302.5,3302.4,0.6977156]
[1722270116532,3.08842853,3302.6,3302.4,0.6977156]
[1722270116729,3.07605748,3302.5,3302.4,0.6977156]
[1722270117087,0.04805748,3302.5,3302.4,0.6977156]
[1722270117284,3.07605748,3302.5,3302.4,0.6977156]
[1722270117488,0.04805748,3302.5,3302.4,0.6977156]
[1722270118235,0.04805748,3302.5,3302.4,3.1848156]
[1722270118528,0.04805748,3302.5,3302.4,3.50329716]
[1722270118678,3.02775,3302.8,3302.4,3.50329716]
[1722270118884,3.02775,3302.8,3302.5,0.55]
[1722270119698,0.06050853,3302.9,3302.5,0.55]
[1722270119699,0.06050853,3302.7,3302.5,0.55]
[1722270119891,3.02759,3303.0,3302.5,0.55]
[1722270119892,3.08829853,3302.8,3302.5,0.55]
[1722270120185,3.08829853,3302.8,3302.5,0.90032972]
[1722270120434,0.06050853,3302.8,3302.5,0.90032972]
[1722270120726,6.05582,3302.6,3302.5,0.55]
[1722270120944,3.028,3302.5,3302.4,0.1477156]
[1722270121300,6.056,3302.5,3302.4,0.1477156]
[1722270121485,6.6616,3302.5,3302.4,0.1477156]
[1722270121692,9.6896,3302.5,3302.4,0.1477156]
[1722270121924,12.6896,3302.5,3302.4,0.1477156]
[1722270122129,9.6616,3302.5,3302.4,0.1477156]
[1722270122328,3.028,3302.5,3302.4,0.1477156]
[1722270122545,3.02747,3303.1,3302.4,0.1477156]
[1722270122546,3.08842853,3302.6,3302.4,0.1477156]
[1722270122828,3.08850853,3302.5,3302.4,0.1477156]
[1722270123442,6.11650853,3302.5,3302.4,0.1477156]
[1722270123939,6.16525768,3302.5,3302.4,0.1477156]
[1722270124297,3.13725768,3302.5,3302.4,0.1477156]
[1722270124501,0.04874915,3302.5,3302.4,0.1477156]
[1722270124701,0.04874915,3302.5,3302.4,0.6977156]
[1722270124944,0.06050853,3302.6,3302.4,0.6977156]
[1722270125114,0.04701513,3302.5,3302.4,0.6977156]
[1722270125851,0.04702308,3302.5,3302.4,0.6977156]
[1722270126046,3.02751,3303.1,3302.4,0.6977156]
[1722270126346,3.02769,3302.9,3302.5,0.55]
[1722270126907,0.14906486,3303.2,3302.5,0.55]
[1722270126908,3.08823853,3302.8,3302.5,0.55]
[1722270127110,0.06050853,3302.7,3302.5,0.55]
[1722270128408,3.02769,3302.9,3302.5,0.55]
[1722270128646,3.02736,3303.2,3302.5,0.55]
[1722270128804,7.51862764,3303.3,3302.6,2.54445547]
[1722270129014,7.51862764,3303.3,3302.7,0.85944555]
[1722270129015,10.54594764,3303.3,3302.7,0.85944555]
[1722270129575,0.06050853,3303.2,3302.7,0.85944555]
[1722270129721,10.54594764,3303.3,3302.7,0.85944555]
[1722270129722,7.51862764,3303.3,3302.7,0.85944555]
[1722270129925,0.06050853,3303.2,3302.7,0.85944555]
[1722270130110,7.37,3304.2,3303.0,3.02746]
[1722270130316,7.37,3304.2,3302.8,0.39488582]
[1722270130317,3.02624,3304.5,3303.5,3.02709]
[1722270130513,3.02614,3304.6,3303.6,3.02694]
[1722270130812,3.02603,3304.7,3303.6,0.55]
[1722270130813,3.02618,3304.5,3303.6,0.55]
[1722270131058,7.37,3304.8,3303.6,0.55]
[1722270131059,3.02641,3304.3,3303.6,0.55]
[1722270131220,3.08695853,3304.2,3303.6,0.55]
[1722270131634,2.4877,3304.1,3303.1,3.02742]
[1722270131963,2.4877,3304.1,3302.4,2.6316156]
[1722270131964,3.02749,3303.1,3302.4,2.6316156]
[1722270132121,0.06050853,3303.0,3302.4,2.6316156]
[1722270132830,3.02748,3303.1,3302.4,2.6316156]
[1722270132831,3.02677,3303.9,3303.0,2.3494]
[1722270133032,3.02658,3304.1,3303.2,3.02732]
[1722270133264,3.02639,3304.3,3303.1,0.59823988]
[1722270133265,3.02639,3304.3,3303.3,0.06053821]
[1722270133473,10.39621,3304.5,3303.3,3.08776821]
[1722270133474,3.02633,3304.4,3303.3,3.08776821]
[1722270133621,3.08693853,3304.3,3303.3,0.06053821]
[1722270133821,3.02663,3304.0,3303.4,0.30878882]
[1722270134017,3.08702853,3304.2,3303.5,0.55]
[1722270134270,3.02659,3304.1,3303.5,0.55]
[1722270134417,3.08709853,3304.1,3303.5,0.55]
[1722270134868,3.02643,3304.3,3303.5,0.55]
[1722270135071,0.06050853,3304.2,3303.6,0.39464439]
[1722270135493,0.06050853,3304.2,3303.7,0.55]
[1722270135803,3.02659,3304.1,3303.7,0.55]
[1722270136113,3.02659,3304.1,3303.0,2.3494]
[1722270136114,3.027,3303.6,3303.0,2.3494]
[1722270136393,0.06050853,3303.5,3303.0,2.3494]
[1722270136761,3.08750853,3303.6,3303.0,2.3494]
[1722270137075,3.02739,3303.2,3302.5,2.4023]
[1722270137281,0.06050853,3303.1,3302.5,2.4023]
[1722270137451,3.02755,3303.0,3302.5,2.4023]
[1722270137652,0.06050853,3303.1,3302.5,2.4023]
[1722270137965,3.07350942,3303.0,3302.6,0.55780956]
[1722270138163,3.07350942,3303.0,3302.5,2.4023]
[1722270138164,0.04594942,3303.0,3302.7,3.08831529]
[1722270138507,3.02674,3303.9,3303.0,3.02755]
[1722270138682,3.02674,3303.9,3302.8,3.02771]
[1722270138683,3.02697,3303.7,3302.8,3.02765]
[1722270138884,0.06050853,3303.8,3302.8,3.02765]
[1722270138885,0.04626554,3303.8,3302.8,3.02765]
[1722270139197,0.04612254,3303.6,3303.2,3.02736]
[1722270139409,12.17,3304.4,3303.5,3.02708]
[1722270139410,3.02633,3304.4,3303.5,3.02708]
[1722270139558,3.02633,3304.4,3303.6,0.55]
[1722270139956,15.19584,3304.9,3303.6,0.55]
[1722270139957,3.02619,3304.5,3303.6,0.55]
[1722270140169,15.19587,3304.9,3303.9,3.02665]
[1722270140410,3.02579,3305.0,3304.0,2.8952]
[1722270140411,10.39576,3305.0,3304.0,2.8952]
[1722270140715,3.026,3304.7,3304.0,2.8952]
[1722270140868,0.06050853,3304.6,3304.0,5.92182]
[1722270141068,3.02586,3304.9,3304.1,3.02654]
[1722270141277,6.92576574,3305.5,3304.4,3.02626]
[1722270141278,3.02539,3305.4,3304.4,3.02626]
[1722270141584,3.08600853,3305.3,3304.5,0.55]
[1722270141756,3.02586,3304.9,3304.5,0.55]
[1722270142098,3.02608,3304.6,3304.2,0.55]
[1722270142314,3.08660853,3304.6,3304.1,0.55]
[1722270142457,0.06050853,3304.6,3304.1,0.55]
[1722270142659,0.06050853,3304.9,3304.2,3.618573]
[1722270142864,0.06050853,3304.9,3304.3,3.57634]
[1722270143066,0.06050853,3305.1,3304.3,3.63681168]
[1722270143376,0.06050853,3305.1,3304.3,3.63680859]
[1722270143706,0.06050853,3305.1,3304.5,3.02616]
[1722270144013,4.07037857,3305.4,3304.6,0.55]
[1722270144014,0.06050853,3305.3,3304.6,0.55]
[1722270144182,3.02558,3305.2,3304.6,0.55]
[1722270144511,3.02558,3305.2,3304.0,2.3452]
[1722270144512,3.02596,3304.8,3304.0,2.3452]
[1722270144674,3.02573,3305.0,3304.2,3.02643]
[1722270144675,0.06050853,3304.9,3304.2,3.02643]
[1722270144861,0.06050853,3304.9,3304.2,3.921253]
[1722270145061,3.02551,3305.3,3304.3,0.61052061]
[1722270145312,7.37,3305.6,3304.6,3.02603]
[1722270145313,3.33383574,3305.5,3304.6,3.02603]
[1722270145473,0.06050853,3305.4,3304.7,0.61051253]
[1722270145808,3.02544,3305.3,3304.7,0.55]
[1722270146122,3.02566,3305.1,3304.5,0.55]
[1722270146276,3.02566,3305.1,3304.3,0.55]
[1722270146462,0.06050853,3305.2,3304.4,0.357638]
[1722270146659,3.02572,3305.0,3304.5,0.55]
[1722270146903,3.02547,3305.3,3304.5,0.55]
[1722270147115,3.08604853,3305.2,3304.4,0.55]
[1722270147269,0.06050853,3305.2,3304.5,0.35763]
[1722270147585,0.06050853,3305.2,3304.6,0.55]
[1722270148029,0.06050853,3305.3,3304.6,0.55]
[1722270148231,3.08595853,3305.3,3304.6,0.55]
[1722270148396,0.06050853,3305.3,3304.6,4.02992244]
[1722270148597,3.08579853,3305.5,3304.6,4.02992244]
[1722270148801,3.08579853,3305.5,3304.6,4.02991244]
[1722270149654,0.06050853,3305.6,3304.8,5.32393]
[1722270149816,3.02492,3305.9,3305.0,3.02564]
[1722270150203,3.02492,3305.9,3305.1,0.55]
[1722270150425,7.37,3306.0,3305.1,3.63612738]
[1722270150615,7.37,3306.0,3305.1,1.33052851]
[1722270151038,0.06050853,3305.9,3305.2,3.02553]
[1722270151205,7.37,3306.6,3305.6,3.02508]
[1722270151206,3.02439,3306.5,3305.6,3.02508]
[1722270151406,4.366249,3306.5,3305.6,3.02508]
[1722270151647,3.08489853,3306.5,3305.7,3.57505]
[1722270152242,0.06050853,3306.5,3305.7,3.57505]
[1722270152559,3.08486853,3306.5,3305.7,3.57505]
[1722270152849,6.08494853,3306.4,3305.8,0.357505]
[1722270153062,3.02462,3306.2,3305.9,0.55]
[1722270153278,3.02462,3306.2,3305.3,2.4935]
[1722270153279,3.02503,3305.8,3305.3,2.4935]
[1722270153456,3.02517,3305.6,3305.3,2.4935]
[1722270153657,0.06050853,3305.7,3304.8,5.52339]
[1722270153981,0.04785045,3305.5,3304.9,0.854933]
[1722270154121,0.04770223,3305.6,3305.2,3.02546]
[1722270154436,0.04785045,3305.5,3305.3,3.3884654]
[1722270154636,3.08521853,3306.1,3305.3,3.3884654]
[1722270154933,3.07289304,3306.0,3305.3,0.302546]
[1722270155139,3.02503,3305.8,3305.4,0.55]
[1722270155459,0.04792938,3305.7,3305.4,0.55]
[1722270155667,0.04792938,3305.7,3305.5,0.06049877]
[1722270155825,0.04792938,3305.7,3305.2,0.55]
[1722270155826,0.04792938,3305.7,3305.6,0.85858388]
[1722270156020,3.02499,3305.8,3305.2,0.55]
[1722270156218,3.13177518,3305.7,3304.8,2.4975]
[1722270156427,7.37,3306.4,3304.9,0.24975]
[1722270156428,3.08569853,3305.6,3304.9,0.24975]
[1722270156659,0.04611772,3305.5,3304.9,0.24975]
[1722270157464,3.02537,3305.4,3304.9,0.24975]
[1722270157682,0.04611772,3305.5,3305.0,0.55]
[1722270157683,3.02545,3305.3,3305.0,0.55]
[1722270157989,0.04585934,3305.3,3305.0,0.879725]
[1722270158487,0.04582535,3305.2,3305.0,0.879725]
[1722270158887,0.06050853,3305.7,3305.0,0.879725]
[1722270159059,3.02465,3306.2,3305.0,0.879725]
[1722270159060,0.04595985,3305.1,3305.0,3.905425]
[1722270159259,3.02491,3305.9,3305.0,3.905425]
[1722270159461,10.39445,3306.4,3305.1,3.02557]
[1722270159465,3.02479,3306.1,3305.1,3.02557]
[1722270159668,0.04465877,3305.8,3305.3,3.02543]
[1722270159848,0.04472298,3306.0,3305.4,0.55]
[1722270160050,0.04461942,3305.7,3305.4,0.907543]
[1722270160253,3.02471,3306.1,3305.4,0.907543]
[1722270160484,0.04457996,3305.6,3305.4,0.907543]
[1722270160669,3.02471,3306.1,3305.5,0.3932973]
[1722270160877,3.02457,3306.3,3305.5,0.3932973]
[1722270160878,6.04917,3306.3,3305.6,0.55]
[1722270161054,7.37,3306.4,3305.6,2.8737]
[1722270161399,3.02453,3306.3,3305.6,2.8737]
[1722270161716,3.02468,3306.2,3305.6,2.93419558]
[1722270161848,3.02471,3306.1,3305.7,0.33274929]
[1722270162050,6.0495,3306.1,3305.8,0.55]
[1722270162299,3.02476,3306.1,3305.8,0.55]
[1722270162981,3.02476,3306.1,3305.8,0.87064493]
[1722270163752,3.02489,3305.9,3305.8,0.87064493]
[1722270164097,3.02489,3305.9,3305.8,0.55]
[1722270164391,6.04978,3305.9,3305.8,0.55]
[1722270164761,3.02525,3305.6,3305.1,2.3714]
[1722270164970,3.02522,3305.6,3305.1,2.3714]
[1722270165222,0.06050853,3306.0,3305.1,2.3714]
[1722270165223,3.02515,3305.7,3305.2,0.23714]
[1722270165514,3.08562853,3305.7,3305.2,0.23714]
[1722270165790,3.02517,3305.6,3305.2,0.23714]
[1722270165994,3.02539,3305.4,3305.2,0.23714]
[1722270166355,3.02517,3305.6,3305.3,0.260854]
[1722270166555,3.02535,3305.4,3305.3,0.260854]
[1722270166808,3.06953813,3305.4,3305.3,0.260854]
[1722270167018,3.02567,3305.1,3304.6,2.3033]
[1722270167224,0.0440302,3305.0,3304.6,2.3033]
[1722270167503,3.02605,3304.7,3304.1,2.3033]
[1722270167706,3.02605,3304.7,3304.2,0.96433]
[1722270167906,0.04387984,3304.6,3304.1,2.3033]
[1722270168264,3.0259,3304.8,3304.1,2.3033]
[1722270168465,0.04383846,3304.5,3304.1,5.32981]
[1722270168776,0.04375184,3304.4,3304.3,3.0263]
[1722270168978,3.02558,3305.2,3304.3,3.08681575]
[1722270169178,0.04385906,3305.1,3304.4,3.93757058]
[1722270169386,10.39544,3305.3,3304.5,0.06051205]